bitfinex/quotes_BTCUSD_20250530
["timestamp","ask_amount","ask_price","bid_price","bid_amount"]
[1748618006279,0.00014683,105570.0,105560.0,0.8659548]
[1748618006499,0.02856307,105570.0,105560.0,0.8659548]
[1748618006711,0.22748249,105570.0,105560.0,0.8659548]
[1748618006927,0.03803474,105570.0,105560.0,0.8659548]
[1748618007152,0.02856245,105570.0,105560.0,0.8659548]
[1748618007377,0.22748249,105570.0,105560.0,0.8659548]
[1748618007606,0.2274832,105570.0,105560.0,0.8659548]
[1748618008116,0.20853925,105570.0,105560.0,0.8658748]
[1748618008343,0.20853925,105570.0,105560.0,0.8505748]
[1748618009011,0.20853925,105570.0,105560.0,0.18357395]
[1748618009741,0.20853925,105570.0,105560.0,0.09105395]
[1748618009987,0.20853925,105570.0,105560.0,0.18357395]
[1748618010228,0.1989388,105560.0,105550.0,0.79727227]
[1748618010483,0.19906678,105570.0,105560.0,0.04704085]
[1748618010740,0.19906678,105570.0,105560.0,0.1380948]
[1748618011254,0.18959458,105570.0,105560.0,0.1380948]
[1748618012388,0.18959458,105570.0,105560.0,0.1214948]
[1748618012610,0.18959458,105570.0,105560.0,0.1375948]
[1748618013733,0.18959458,105570.0,105560.0,0.09105395]
[1748618014624,0.18959458,105570.0,105560.0,0.18357395]
[1748618016332,0.18959458,105570.0,105560.0,0.09105395]
[1748618016543,0.18959458,105570.0,105560.0,0.23154303]
[1748618016728,0.02856334,105570.0,105560.0,0.2291748]
[1748618016976,0.02856334,105570.0,105560.0,0.5691748]
[1748618016977,0.03803456,105570.0,105560.0,0.5691748]
[1748618018085,0.03803447,105570.0,105560.0,0.5691748]
[1748618019602,0.02856218,105570.0,105560.0,0.5691748]
[1748618019829,0.20853907,105570.0,105560.0,0.09105395]
[1748618020052,0.20853907,105570.0,105550.0,0.01853142]
[1748618020053,0.20843156,105550.0,105540.0,0.10898]
[1748618020285,0.20843156,105550.0,105540.0,0.54003395]
[1748618020504,0.01894791,105550.0,105540.0,0.5706748]
[1748618020745,0.20843156,105550.0,105540.0,0.21613395]
[1748618020963,0.00947346,105550.0,105540.0,0.5706748]
[1748618021401,0.0189471,105550.0,105540.0,0.5726748]
[1748618021621,0.02842092,105550.0,105540.0,0.5726748]
[1748618021842,0.00947346,105550.0,105540.0,0.5726748]
[1748618022059,0.19893889,105560.0,105540.0,0.5726748]
[1748618022060,0.02841939,105560.0,105550.0,0.04704085]
[1748618022281,0.21788509,105560.0,105550.0,0.1980348]
[1748618022499,0.21788509,105560.0,105550.0,0.2145348]
[1748618023209,0.20841217,105560.0,105550.0,0.2145348]
[1748618023886,0.21790547,105550.0,105540.0,0.68679518]
[1748618024107,0.20843129,105550.0,105540.0,0.46470913]
[1748618024352,0.21790538,105550.0,105540.0,0.88448913]
[1748618024580,0.21790538,105550.0,105540.0,0.57334913]
[1748618024798,0.21790538,105550.0,105540.0,0.85318913]
[1748618025528,0.21790538,105550.0,105540.0,0.85518913]
[1748618026130,0.21790538,105550.0,105540.0,0.85618913]
[1748618026581,0.01894764,105550.0,105540.0,0.88808913]
[1748618026834,0.01894719,105550.0,105540.0,0.88808913]
[1748618027081,0.20841181,105560.0,105550.0,0.04634085]
[1748618027312,0.0284184,105560.0,105550.0,0.4773948]
[1748618027604,0.03789159,105560.0,105550.0,0.4773948]
[1748618027849,0.0284184,105560.0,105550.0,0.4773948]
[1748618028493,0.01894539,105560.0,105550.0,0.4773948]
[1748618028708,0.03789159,105560.0,105550.0,0.4773948]
[1748618028931,0.23683057,105560.0,105550.0,0.4773948]
[1748618029139,0.03789159,105560.0,105550.0,0.4773948]
[1748618029366,0.01894539,105560.0,105550.0,0.4773948]
[1748618029582,0.03789132,105560.0,105550.0,0.4773948]
[1748618030034,0.02841822,105560.0,105550.0,0.4773948]
[1748618030248,0.0189453,105560.0,105550.0,0.4773948]
[1748618030465,0.03789123,105560.0,105550.0,0.4773948]
[1748618030709,0.03789114,105560.0,105550.0,0.4773948]
[1748618031119,0.22735684,105560.0,105550.0,0.8658348]
[1748618031363,0.22735747,105560.0,105550.0,0.8658348]
[1748618031583,0.03789177,105560.0,105550.0,0.8340348]
[1748618032514,0.03789168,105560.0,105550.0,0.8340348]
[1748618032937,0.22735783,105560.0,105550.0,0.8340348]
[1748618033154,0.03789213,105560.0,105550.0,0.8340348]
[1748618033375,0.02841894,105560.0,105550.0,0.8340348]
[1748618033634,0.02841894,105560.0,105550.0,0.8501348]
[1748618034043,0.02841894,105560.0,105550.0,0.85972141]
[1748618034478,0.21788464,105560.0,105550.0,0.85972141]
[1748618034692,0.02841894,105560.0,105550.0,0.85972141]
[1748618034922,0.02841894,105560.0,105550.0,0.47128141]
[1748618035198,0.02841894,105560.0,105550.0,0.85968141]
[1748618035837,0.02841894,105560.0,105550.0,0.84358141]
[1748618035838,0.20841181,105560.0,105550.0,0.84358141]
[1748618036079,0.20841181,105560.0,105550.0,0.82904056]
[1748618037499,0.1989388,105560.0,105550.0,0.82904056]
[1748618040264,0.1989388,105560.0,105550.0,0.53308056]
[1748618042459,0.20841163,105560.0,105550.0,0.53308056]
[1748618042685,0.00947256,105560.0,105550.0,0.57892141]
[1748618042906,0.03789123,105560.0,105550.0,0.57892141]
[1748618043125,0.03789114,105560.0,105550.0,0.57892141]
[1748618043330,0.02841813,105560.0,105550.0,0.57892141]
[1748618043540,0.03789123,105560.0,105550.0,0.57892141]
[1748618043759,0.23683021,105560.0,105550.0,0.57892141]
[1748618044192,0.04736451,105560.0,105550.0,0.57892141]
[1748618044625,0.23683021,105560.0,105550.0,0.57892141]
[1748618045272,0.22735765,105560.0,105550.0,0.57892141]
[1748618046389,0.01894557,105560.0,105550.0,0.57892141]
[1748618046623,0.02841858,105560.0,105550.0,0.57892141]
[1748618047539,0.18959458,105570.0,105560.0,0.04484085]
[1748618047540,0.00014683,105570.0,105560.0,0.04484085]
[1748618047750,0.02856227,105570.0,105560.0,0.97238715]
[1748618047973,0.01909025,105570.0,105560.0,0.4318148]
[1748618048197,0.02856209,105570.0,105560.0,0.4318148]
[1748618048447,0.03803411,105570.0,105560.0,0.4318148]
[1748618049326,0.02856209,105570.0,105560.0,0.4318148]
[1748618049545,0.02856209,105570.0,105560.0,0.4338148]
[1748618049977,0.0096185,105570.0,105560.0,0.4338148]
[1748618050211,0.00014683,105570.0,105560.0,0.4338148]
[1748618050422,0.01909016,105570.0,105560.0,0.4348148]
[1748618051290,0.01909008,105570.0,105560.0,0.4348148]
[1748618051575,0.00014683,105570.0,105560.0,0.4348148]
[1748618051789,0.00961858,105570.0,105560.0,0.97301924]
[1748618052213,0.00014683,105570.0,105560.0,1.17195813]
[1748618052431,0.00014683,105570.0,105560.0,1.18143114]
[1748618052675,0.00014683,105570.0,105560.0,1.52143114]
[1748618053107,0.00014683,105570.0,105560.0,1.51195813]
[1748618053330,0.00014683,105570.0,105560.0,1.31301924]
[1748618053574,0.01909016,105570.0,105560.0,0.7748148]
[1748618053845,0.20853871,105570.0,105560.0,0.5409548]
[1748618054077,0.22353871,105570.0,105560.0,0.82229395]
[1748618054303,0.20853871,105570.0,105560.0,0.4485948]
[1748618054519,0.20853871,105570.0,105560.0,0.82229395]
[1748618054741,0.22353871,105570.0,105560.0,0.43405395]
[1748618054967,0.23963871,105570.0,105560.0,0.43536]
[1748618055918,0.23963871,105570.0,105560.0,0.43436]
[1748618056400,0.62653266,105570.0,105560.0,0.002]
[1748618057293,0.63556418,105570.0,105560.0,0.002]
[1748618057525,0.33972418,105570.0,105560.0,0.002]
[1748618057962,0.19895765,105550.0,105540.0,0.34]
[1748618058169,0.19895765,105550.0,105540.0,0.36413456]
[1748618058582,0.19895765,105550.0,105540.0,0.36413324]
[1748618059532,0.19895765,105550.0,105540.0,0.36513165]
[1748618060211,0.19895765,105550.0,105540.0,0.35855244]
[1748618060430,0.19895765,105550.0,105540.0,0.36055244]
[1748618060649,0.19895765,105550.0,105540.0,0.47271262]
[1748618061304,0.19895765,105550.0,105540.0,0.45517239]
[1748618061525,0.19895765,105550.0,105540.0,0.47270845]
[1748618061752,0.19895765,105550.0,105540.0,0.48230596]
[1748618061962,0.19895765,105550.0,105540.0,0.47573002]
[1748618062173,0.19895765,105550.0,105540.0,0.48230588]
[1748618062845,0.19895765,105550.0,105540.0,0.48230395]
[1748618063480,0.19895765,105550.0,105540.0,0.48231329]
[1748618063732,0.19895765,105550.0,105540.0,0.48231649]
[1748618064612,0.19895765,105550.0,105540.0,0.48231684]
[1748618064815,0.19895765,105550.0,105540.0,0.4823162]
[1748618065248,0.20843138,105550.0,105540.0,0.5141162]
[1748618065472,0.20843138,105550.0,105540.0,0.50753545]
[1748618065703,0.20843138,105550.0,105540.0,0.51411322]
[1748618066161,0.20843138,105550.0,105540.0,0.51411287]
[1748618066637,0.01894773,105550.0,105540.0,0.51411287]
[1748618066861,0.01894719,105550.0,105540.0,0.51411882]
[1748618067085,0.03789528,105550.0,105540.0,0.51411882]
[1748618067292,0.03789528,105550.0,105540.0,0.51411847]
[1748618067517,0.01894719,105550.0,105540.0,0.51411872]
[1748618067733,0.01894701,105550.0,105540.0,0.51481872]
[1748618068226,0.02842074,105550.0,105540.0,0.51481696]
[1748618068564,0.02842074,105550.0,105540.0,0.49069439]
[1748618068785,0.01894701,105550.0,105540.0,0.51481529]
[1748618069009,0.02842074,105550.0,105540.0,0.51481518]
[1748618069230,0.02842074,105550.0,105540.0,0.51481506]
[1748618069692,0.01894701,105550.0,105540.0,0.51481506]
[1748618070351,0.01894611,105560.0,105550.0,0.01454085]
[1748618070617,0.20841181,105560.0,105550.0,0.87441552]
[1748618071069,0.20841181,105560.0,105550.0,0.88981552]
[1748618071491,0.20841181,105560.0,105550.0,0.88981707]
[1748618071702,0.19893862,105560.0,105550.0,0.88981568]
[1748618071973,0.20841181,105560.0,105550.0,0.88981604]
[1748618072193,0.21788509,105560.0,105550.0,0.88981795]
[1748618072843,0.21788509,105560.0,105550.0,0.87441795]
[1748618073056,0.20841217,105560.0,105550.0,0.87441795]
[1748618073279,0.19893898,105560.0,105550.0,0.85791795]
[1748618073523,0.19893898,105560.0,105550.0,0.85792134]
[1748618073992,0.19893898,105560.0,105550.0,0.85792205]
[1748618074446,0.19893898,105560.0,105550.0,0.85792573]
[1748618074664,0.1894657,105560.0,105550.0,0.85792573]
[1748618074876,0.1894657,105560.0,105550.0,0.85792487]
[1748618075301,0.1894657,105560.0,105550.0,0.85791526]
[1748618075768,0.1894657,105560.0,105550.0,0.84037317]
[1748618075981,0.01894602,105560.0,105550.0,0.89031274]
[1748618076200,0.22735756,105560.0,105550.0,0.89031274]
[1748618076474,0.00947256,105560.0,105550.0,0.89031274]
[1748618076728,0.02841795,105560.0,105550.0,0.89031263]
[1748618076946,0.03789087,105560.0,105550.0,0.87277247]
[1748618077394,0.04736379,105560.0,105550.0,0.89031353]
[1748618077621,0.04736379,105560.0,105550.0,0.89031239]
[1748618077860,0.03789078,105560.0,105550.0,0.89031239]
[1748618078074,0.04736379,105560.0,105550.0,0.89031239]
[1748618078388,0.04736379,105560.0,105550.0,0.89031636]
[1748618078621,0.03789078,105560.0,105550.0,0.89031636]
[1748618078833,0.03789078,105560.0,105550.0,0.89031751]
[1748618079046,0.03789078,105560.0,105550.0,0.89031757]
[1748618079441,0.03789078,105560.0,105550.0,0.87277232]
[1748618079644,0.04736379,105560.0,105550.0,0.89031879]
[1748618079870,0.03789078,105560.0,105550.0,0.89031879]
[1748618080077,0.03789078,105560.0,105550.0,0.89032061]
[1748618080267,0.02841795,105560.0,105550.0,0.89032046]
[1748618080455,0.02841795,105560.0,105550.0,0.89031895]
[1748618080660,0.02841795,105560.0,105550.0,0.8903192]
[1748618081837,0.02841795,105560.0,105550.0,0.89032456]
[1748618082191,0.02841795,105560.0,105550.0,0.89032635]
[1748618082401,0.18959499,105570.0,105550.0,1.07980735]
[1748618082613,0.00947256,105560.0,105550.0,0.7992732]
[1748618082816,0.01894521,105560.0,105550.0,0.89032715]
[1748618083373,0.01894521,105560.0,105550.0,0.89033192]
[1748618083979,0.01894521,105560.0,105550.0,0.8661948]
[1748618084181,0.01894521,105560.0,105550.0,0.87277798]
[1748618084333,0.01894521,105560.0,105550.0,0.8903332]
[1748618084744,0.01894521,105560.0,105550.0,0.8661948]
[1748618084954,0.01894521,105560.0,105550.0,0.89033302]
[1748618086009,0.01894521,105560.0,105550.0,0.89033268]
[1748618086217,0.22748343,105570.0,105550.0,1.07981633]
[1748618086438,0.00947247,105560.0,105550.0,0.80875513]
[1748618086631,0.00947247,105560.0,105550.0,0.87277846]
[1748618086836,0.01894512,105560.0,105550.0,0.89033627]
[1748618087171,0.01894512,105560.0,105550.0,0.87277846]
[1748618087570,0.02841795,105560.0,105550.0,0.89017853]
[1748618087788,0.01894512,105560.0,105550.0,0.89018168]
[1748618088219,0.01894512,105560.0,105550.0,0.89018873]
[1748618088494,0.02841795,105560.0,105550.0,0.59451095]
[1748618088698,0.01894512,105560.0,105550.0,0.8660348]
[1748618088902,0.01894512,105560.0,105550.0,0.89019385]
[1748618089611,0.01894512,105560.0,105550.0,0.89019392]
[1748618089832,0.03789087,105560.0,105550.0,0.88360513]
[1748618090042,0.03789087,105560.0,105550.0,0.89019659]
[1748618090462,0.03789078,105560.0,105550.0,0.89019659]
[1748618090680,0.01894512,105560.0,105550.0,0.89019659]
[1748618090952,0.02841804,105560.0,105550.0,0.89019478]
[1748618091169,0.02841795,105560.0,105550.0,0.89019836]
[1748618091597,0.02841795,105560.0,105550.0,0.89019774]
[1748618091802,0.03789096,105560.0,105550.0,0.89019774]
[1748618092010,0.03789096,105560.0,105550.0,0.89019796]
[1748618092446,0.03789096,105560.0,105550.0,0.89020044]
[1748618092658,0.03789087,105560.0,105550.0,0.89020044]
[1748618092876,0.03789087,105560.0,105550.0,0.89020054]
[1748618093080,0.03789087,105560.0,105550.0,0.89020321]
[1748618093284,0.04736406,105560.0,105550.0,0.59452321]
[1748618093536,0.03789087,105560.0,105550.0,0.89016306]
[1748618093968,0.04736397,105560.0,105550.0,0.89017491]
[1748618094599,0.20841172,105560.0,105550.0,0.46977508]
[1748618094846,0.23971172,105560.0,105550.0,0.84311688]
[1748618095064,0.18948365,105550.0,105540.0,0.2971]
[1748618095270,0.19895765,105550.0,105540.0,1.14022886]
[1748618095488,0.19895765,105550.0,105540.0,1.15476923]
[1748618095907,0.19895765,105550.0,105540.0,1.154774]
[1748618096336,0.19895765,105550.0,105540.0,1.155774]
[1748618096552,0.19895765,105550.0,105540.0,1.15577563]
[1748618096757,0.19895765,105550.0,105540.0,1.1577754]
[1748618096972,0.21515765,105550.0,105540.0,1.1577754]
[1748618097442,0.21515765,105550.0,105540.0,1.15778041]
[1748618097648,0.21515765,105550.0,105540.0,1.15778174]
[1748618097853,0.19895765,105550.0,105540.0,1.15778174]
[1748618098278,0.19895765,105550.0,105540.0,1.15778152]
[1748618098491,0.19895765,105550.0,105540.0,1.15778086]
[1748618098749,0.20538365,105550.0,105540.0,1.15774085]
[1748618098964,0.20538365,105550.0,105540.0,1.15774038]
[1748618099179,0.20538365,105550.0,105540.0,0.86214038]
[1748618099392,0.20538365,105550.0,105540.0,0.86063813]
[1748618099620,0.20538365,105550.0,105540.0,0.86063774]
[1748618099839,0.20538365,105550.0,105540.0,0.86063778]
[1748618100112,0.20538365,105550.0,105540.0,0.8364348]
[1748618100338,0.18948365,105550.0,105540.0,0.85403745]
[1748618101220,0.20468365,105550.0,105540.0,0.4485948]
[1748618101476,0.22068365,105550.0,105540.0,0.52629395]
[1748618101715,0.22068365,105550.0,105540.0,0.003]
[1748618101940,0.22068365,105550.0,105540.0,0.02721198]
[1748618102179,0.22068365,105550.0,105540.0,0.003]
[1748618102659,0.22068365,105550.0,105540.0,0.001]
[1748618102882,0.22068365,105550.0,105540.0,0.00759955]
[1748618103324,0.22068365,105550.0,105540.0,0.00659955]
[1748618103790,0.23107651,105540.0,105530.0,0.34]
[1748618104074,0.23107651,105540.0,105530.0,0.00659584]
[1748618104314,0.23107651,105540.0,105530.0,0.34]
[1748618104528,0.23107651,105540.0,105530.0,0.34659664]
[1748618104750,0.23107651,105540.0,105530.0,0.34659607]
[1748618104973,0.19897651,105540.0,105530.0,0.34659565]
[1748618105208,0.21537651,105540.0,105530.0,0.34]
[1748618105425,0.21537651,105540.0,105530.0,0.34659246]
[1748618105876,0.21537651,105540.0,105530.0,0.3465913]
[1748618106100,0.21537651,105540.0,105530.0,0.34]
[1748618106318,0.21537651,105540.0,105530.0,0.34658894]
[1748618106814,0.21537651,105540.0,105530.0,0.34658625]
[1748618107033,0.20845132,105540.0,105530.0,0.43228]
[1748618107255,0.20845132,105540.0,105530.0,0.4548646]
[1748618107473,0.20845132,105540.0,105530.0,0.43886458]
[1748618107965,0.19897651,105540.0,105530.0,0.52991853]
[1748618108186,0.19897651,105540.0,105530.0,0.53883395]
[1748618108407,0.19897651,105540.0,105530.0,0.55995872]
[1748618108632,0.19895774,105550.0,105530.0,1.11309657]
[1748618108851,0.00947355,105550.0,105540.0,0.97316108]
[1748618109078,0.01894737,105550.0,105540.0,0.9773738]
[1748618109294,0.03789546,105550.0,105540.0,0.43923491]
[1748618109518,0.03789537,105550.0,105540.0,0.43923372]
[1748618109742,0.04736955,105550.0,105540.0,0.43923372]
[1748618109961,0.2368532,105550.0,105540.0,0.43923299]
[1748618110662,0.02842128,105550.0,105540.0,0.43923257]
[1748618110884,0.00947355,105550.0,105540.0,0.43923257]
[1748618111101,0.01894737,105550.0,105540.0,0.43923365]
[1748618111314,0.02842128,105550.0,105540.0,0.43923474]
[1748618111536,0.03789537,105550.0,105540.0,0.43923474]
[1748618111798,0.00947301,105560.0,105550.0,0.38594085]
[1748618112038,0.03789132,105560.0,105550.0,1.11399333]
[1748618112299,0.01894521,105560.0,105550.0,1.1139924]
[1748618112518,0.01894512,105560.0,105550.0,1.1139924]
[1748618112735,0.03789087,105560.0,105550.0,1.1139924]
[1748618112955,0.04736406,105560.0,105550.0,0.57585465]
[1748618113181,0.03789087,105560.0,105550.0,0.57585301]
[1748618113409,0.03889087,105560.0,105550.0,0.57585296]
[1748618113637,0.01047247,105560.0,105550.0,1.11399062]
[1748618113894,0.001,105560.0,105550.0,1.30347425]
[1748618114112,0.01047256,105560.0,105550.0,1.1139906]
[1748618114820,0.01994539,105560.0,105550.0,1.1139906]
[1748618115259,0.01994539,105560.0,105550.0,1.10741255]
[1748618115476,0.0199453,105560.0,105550.0,0.57585183]
[1748618115752,0.0199453,105560.0,105550.0,1.11398958]
[1748618115963,0.02941822,105560.0,105550.0,1.11398963]
[1748618116179,0.02941822,105560.0,105550.0,1.11398964]
[1748618116426,0.02941822,105560.0,105550.0,0.57585189]
[1748618116684,0.02941822,105560.0,105550.0,1.11398964]
[1748618116895,0.0199453,105560.0,105550.0,1.11398964]
[1748618117112,0.01047256,105560.0,105550.0,0.57585212]
[1748618117323,0.001,105560.0,105550.0,1.11398987]
[1748618117763,0.01047265,105560.0,105550.0,1.11398987]
[1748618118225,0.01047265,105560.0,105550.0,1.11398952]
[1748618118422,0.01047265,105560.0,105550.0,1.11398946]
[1748618118638,0.001,105560.0,105550.0,1.11398946]
[1748618118857,0.01047265,105560.0,105550.0,1.11398946]
[1748618119286,0.01047256,105560.0,105550.0,1.11398946]
[1748618119518,0.001,105560.0,105550.0,1.11398946]
[1748618119733,0.01047256,105560.0,105550.0,1.11398946]
[1748618119942,0.01994539,105560.0,105550.0,1.11398946]
[1748618120169,0.02941813,105560.0,105550.0,1.11398946]
[1748618120394,0.03889123,105560.0,105550.0,1.11399012]
[1748618120612,0.03889123,105560.0,105550.0,0.57585237]
[1748618121071,0.04836442,105560.0,105550.0,0.5692748]
[1748618121292,0.04836442,105560.0,105550.0,0.58535104]
[1748618121502,0.02941813,105560.0,105550.0,0.58535104]
[1748618121934,0.01994521,105560.0,105550.0,0.58535104]
[1748618122177,0.02941804,105560.0,105550.0,0.58535104]
[1748618122401,0.01047256,105560.0,105550.0,0.58535104]
[1748618122608,0.001,105560.0,105550.0,0.58535104]
[1748618122820,0.02941813,105560.0,105550.0,0.58535322]
[1748618123027,0.02941813,105560.0,105550.0,0.57877312]
[1748618123242,0.03889123,105560.0,105550.0,0.57877312]
[1748618123543,0.03889123,105560.0,105550.0,0.58535402]
[1748618123762,0.03889114,105560.0,105550.0,0.58535402]
[1748618123972,0.03889114,105560.0,105550.0,0.58535437]
[1748618124186,0.01047247,105560.0,105550.0,0.58535437]
[1748618124395,0.02941813,105560.0,105550.0,0.58535437]
[1748618124610,0.02941813,105560.0,105550.0,0.58535431]
[1748618124840,0.01047247,105560.0,105550.0,0.58535431]
[1748618125066,0.0199453,105560.0,105550.0,1.12349206]
[1748618125282,0.0199453,105560.0,105550.0,1.11691087]
[1748618125489,0.02941822,105560.0,105550.0,1.12349223]
[1748618125701,0.02941822,105560.0,105550.0,1.11691087]
[1748618125923,0.001,105560.0,105550.0,1.12349219]
[1748618126141,0.01047265,105560.0,105550.0,1.11691087]
[1748618126352,0.01994548,105560.0,105550.0,1.11691087]
[1748618126784,0.01047265,105560.0,105550.0,1.11691087]
[1748618126996,0.01994503,105560.0,105550.0,1.11691087]
[1748618127208,0.01994512,105560.0,105550.0,1.11691087]
[1748618127424,0.01047247,105560.0,105550.0,1.11691087]
[1748618127850,0.02941786,105560.0,105550.0,0.58535418]
[1748618128069,0.02941777,105560.0,105550.0,1.11691087]
[1748618128288,0.03889069,105560.0,105550.0,0.48649312]
[1748618128511,0.02941777,105560.0,105550.0,1.41869047]
[1748618128715,0.03889069,105560.0,105550.0,1.41869047]
[1748618128942,0.22601172,105560.0,105550.0,0.44713187]
[1748618129176,0.24081172,105560.0,105550.0,0.44819792]
[1748618129410,0.24081172,105560.0,105550.0,0.10819792]
[1748618129637,0.24081172,105560.0,105550.0,0.10820291]
[1748618129924,0.24081172,105560.0,105550.0,0.44820213]
[1748618130155,0.24081172,105560.0,105550.0,0.44820209]
[1748618131538,0.22501172,105560.0,105550.0,0.44820177]
[1748618131750,0.01894602,105560.0,105550.0,0.53925525]
[1748618131962,0.01894602,105560.0,105550.0,0.5537961]
[1748618132185,0.00014683,105570.0,105560.0,0.37094085]
[1748618132396,0.0380342,105570.0,105560.0,1.27909255]
[1748618132602,0.0380342,105570.0,105560.0,1.31847529]
[1748618132860,0.02856209,105570.0,105560.0,1.31847535]
[1748618133081,0.03803411,105570.0,105560.0,0.7803376]
[1748618133307,0.15276957,105580.0,105560.0,0.78033804]
[1748618133533,0.01994386,105570.0,105560.0,0.68928409]
[1748618133762,0.01994359,105570.0,105560.0,0.7737548]
[1748618133979,0.01994342,105570.0,105560.0,0.78033953]
[1748618134209,0.01994342,105570.0,105560.0,1.51741617]
[1748618134210,0.001,105570.0,105560.0,1.51741617]
[1748618134426,0.16633782,105590.0,105560.0,1.51741626]
[1748618134645,0.02841384,105580.0,105570.0,0.5377148]
[1748618134857,0.18942981,105580.0,105570.0,0.54429953]
[1748618135094,0.18942981,105580.0,105570.0,0.54430042]
[1748618135532,0.18942981,105580.0,105570.0,0.54430028]
[1748618135973,0.001,105580.0,105570.0,0.54429982]
[1748618136198,0.00947077,105580.0,105570.0,1.10775255]
[1748618136469,0.03788353,105580.0,105570.0,1.11433685]
[1748618136683,0.0304124,105580.0,105570.0,1.11433647]
[1748618136906,0.03988353,105580.0,105570.0,1.10775255]
[1748618137131,0.04935475,105580.0,105570.0,0.57620054]
[1748618137340,0.04735475,105580.0,105570.0,0.57620072]
[1748618137562,0.01894046,105590.0,105570.0,0.77512066]
[1748618137852,0.26139828,105600.0,105580.0,1.22196623]
[1748618137853,0.24026788,105600.0,105580.0,1.22196623]
[1748618138073,0.06024225,105600.0,105590.0,0.1977148]
[1748618138309,0.07918136,105600.0,105590.0,0.57640408]
[1748618138534,0.26857529,105600.0,105590.0,0.57640408]
[1748618138753,0.26857529,105600.0,105590.0,0.57639767]
[1748618138978,0.2591056,105600.0,105590.0,0.57640003]
[1748618139196,0.2591056,105600.0,105590.0,0.5698148]
[1748618139411,0.2591056,105600.0,105590.0,0.56020009]
[1748618140077,0.2591056,105600.0,105590.0,0.56019796]
[1748618140520,0.24963654,105600.0,105590.0,0.54429796]
[1748618140742,0.24963654,105600.0,105590.0,0.54429666]
[1748618141193,0.24963654,105600.0,105590.0,0.5377148]
[1748618141404,0.2401673,105600.0,105590.0,0.54429895]
[1748618141656,0.2401673,105600.0,105590.0,0.54429968]
[1748618142110,0.2401673,105600.0,105590.0,0.54429815]
[1748618142337,0.2401673,105600.0,105590.0,0.54429735]
[1748618142550,0.25910623,105600.0,105590.0,0.57639578]
[1748618143033,0.25910623,105600.0,105590.0,0.5698148]
[1748618143246,0.25910623,105600.0,105590.0,0.57639564]
[1748618144100,0.25910623,105600.0,105590.0,0.57639434]
[1748618144541,0.25910623,105600.0,105590.0,0.57639377]
[1748618144777,0.25910623,105600.0,105590.0,0.57639384]
[1748618144996,0.25910623,105600.0,105590.0,0.5698148]
[1748618145233,0.25910623,105600.0,105590.0,0.57639376]
[1748618145736,0.25910623,105600.0,105590.0,0.57639339]
[1748618146168,0.25910623,105600.0,105590.0,0.57639305]
[1748618146406,0.25910623,105600.0,105590.0,0.57639314]
[1748618146624,0.06024207,105600.0,105590.0,0.57639359]
[1748618146909,0.06971158,105600.0,105590.0,0.57639359]
[1748618147146,0.05077274,105600.0,105590.0,1.11453099]
[1748618147366,0.06971086,105600.0,105590.0,0.57639324]
[1748618147584,0.08864997,105600.0,105590.0,1.11452968]
[1748618147806,0.2780439,105600.0,105590.0,1.11452968]
[1748618148027,0.26857502,105600.0,105590.0,1.11452963]
[1748618148244,0.0697114,105600.0,105590.0,1.11452959]
[1748618148472,0.05077283,105600.0,105590.0,1.11452959]
[1748618148689,0.06024198,105600.0,105590.0,1.55418081]
[1748618148912,0.06024198,105600.0,105590.0,1.55417872]
[1748618149127,0.06024198,105600.0,105590.0,1.52973172]
[1748618149410,0.06971131,105600.0,105590.0,1.52061772]
[1748618150085,0.06971131,105600.0,105590.0,1.52061684]
[1748618150428,0.06971131,105600.0,105590.0,1.52061683]
[1748618150648,0.06971131,105600.0,105590.0,1.52061615]
[1748618150887,0.06971131,105600.0,105590.0,1.48710715]
[1748618151091,0.06971131,105600.0,105590.0,1.45518855]
[1748618151306,0.04130386,105600.0,105590.0,1.46176154]
[1748618151520,0.06971122,105600.0,105590.0,1.44213054]
[1748618151750,0.06024189,105600.0,105590.0,1.42973354]
[1748618152002,0.06971122,105600.0,105590.0,1.42973359]
[1748618152453,0.06971122,105600.0,105590.0,1.6410016]
[1748618152940,0.07918064,105600.0,105590.0,1.6410022]
[1748618153183,0.0602418,105600.0,105590.0,1.64100217]
[1748618153614,0.07918037,105600.0,105590.0,1.56275917]
[1748618153837,0.0886497,105600.0,105590.0,1.56275971]
[1748618154076,0.07918019,105600.0,105590.0,1.56275971]
[1748618154294,0.08865033,105600.0,105590.0,1.41068638]
[1748618154544,0.07918127,105600.0,105590.0,1.51480238]
[1748618154973,0.05077301,105600.0,105590.0,1.50822855]
[1748618155189,0.05077301,105600.0,105590.0,1.51480221]
[1748618155405,0.05077283,105600.0,105590.0,1.50822855]
[1748618155619,0.06024198,105600.0,105590.0,1.51480269]
[1748618155866,0.06971131,105600.0,105590.0,0.976665]
[1748618156077,0.07918091,105600.0,105590.0,0.976665]
[1748618156299,0.07918091,105600.0,105590.0,0.872549]
[1748618156508,0.06024198,105600.0,105590.0,0.872549]
[1748618156781,0.06971122,105600.0,105590.0,0.872549]
[1748618157043,0.06024198,105600.0,105590.0,0.872549]
[1748618157701,0.06024198,105600.0,105590.0,0.8725517]
[1748618157912,0.06024198,105600.0,105590.0,0.87255184]
[1748618158596,0.06971131,105600.0,105590.0,0.9757839]
[1748618158815,0.06971131,105600.0,105590.0,0.87255392]
[1748618159461,0.06971131,105600.0,105590.0,0.48527435]
[1748618159687,0.07918082,105600.0,105590.0,0.87231435]
[1748618159904,0.06024198,105600.0,105590.0,1.09004435]
[1748618160123,0.04130386,105600.0,105590.0,1.29840222]
[1748618160334,0.06024207,105600.0,105590.0,1.09004944]
[1748618160547,0.05077283,105600.0,105590.0,1.09004944]
[1748618160773,0.06024207,105600.0,105590.0,1.09004955]
[1748618161045,0.06024207,105600.0,105590.0,1.09004934]
[1748618161293,0.06024207,105600.0,105590.0,1.0834648]
[1748618161506,0.06024207,105600.0,105590.0,1.09004879]
[1748618161983,0.06024198,105600.0,105590.0,1.09004879]
[1748618162661,0.06024198,105600.0,105590.0,1.14098279]
[1748618162880,0.06971131,105600.0,105590.0,1.1409859]
[1748618163105,0.06024198,105600.0,105590.0,1.1409848]
[1748618163320,0.05077283,105600.0,105590.0,1.14098477]
[1748618163547,0.07918127,105600.0,105590.0,1.0118318]
[1748618163767,0.2685752,105600.0,105590.0,0.97785774]
[1748618163983,0.2685752,105600.0,105590.0,0.87232074]
[1748618164205,0.06971158,105600.0,105590.0,1.07749974]
[1748618164421,0.06971149,105600.0,105590.0,1.07749974]
[1748618164634,0.0697114,105600.0,105590.0,0.87232074]
[1748618164873,0.07918091,105600.0,105590.0,0.87232392]
[1748618165093,0.0886506,105600.0,105590.0,0.87232392]
[1748618165318,0.08865051,105600.0,105590.0,0.87232387]
[1748618165525,0.0697114,105600.0,105590.0,0.87232387]
[1748618165745,0.06024207,105600.0,105590.0,0.87232387]
[1748618166223,0.05077283,105600.0,105590.0,1.13664987]
[1748618166437,0.06024198,105600.0,105590.0,1.13664987]
[1748618166655,0.06024198,105600.0,105590.0,1.13665193]
[1748618167148,0.04130386,105600.0,105590.0,1.12079222]
[1748618167369,0.04130386,105600.0,105590.0,3.66653448]
[1748618167592,0.04130386,105600.0,105590.0,3.53973407]